[Event "December 5 Late 2023"]
[Site "https://www.chess.com"]
[Date "2023.12.05"]
[Round "9"]
[White "Djokic, Mihailo"]
[Black "Kopczynski, Michal"]
[Result "0-1"]
[Board "36"]
[TimeControl "180+1"]
[WhiteFideId "976440"]
[BlackFideId "1124200"]
[WhiteElo "2711"]
[BlackElo "2554"]
[WhiteTeam "SRB"]
[BlackTeam "POL"]
[WhiteClock "0:00:00"]
[BlackClock "0:00:09"]

1. e4 {[%clk 0:03:00]}  b6 {[%clk 0:02:59]} 2. d4 {[%clk 0:03:01]}  Bb7 {[%clk 0:03:00]} 3. Bd3 {[%clk 0:03:01]}  e6 {[%clk 0:03:01]} 4. Qe2 {[%clk 0:03:01]}  Nf6 {[%clk 0:03:01]} 5. Nf3 {[%clk 0:03:02]}  d5 {[%clk 0:03:02]} 6. e5 {[%clk 0:03:02]}  Nfd7 {[%clk 0:03:03]} 7. Ng5 {[%clk 0:03:01]}  g6 {[%clk 0:03:02]} 8. Qf3 {[%clk 0:02:24]}  Qe7 {[%clk 0:02:55]} 9. h4 {[%clk 0:02:19]}  h6 {[%clk 0:02:51]} 10. Nh3 {[%clk 0:02:20]}  Qxh4 {[%clk 0:02:37]} 11. c3 {[%clk 0:02:01]}  c5 {[%clk 0:02:37]} 12. Be3 {[%clk 0:01:59]}  Nc6 {[%clk 0:02:36]} 13. g3 {[%clk 0:01:51]}  Qe7 {[%clk 0:02:23]} 14. Nf4 {[%clk 0:01:51]}  cxd4 {[%clk 0:01:57]} 15. cxd4 {[%clk 0:01:50]}  Qb4+ {[%clk 0:01:56]} 16. Nd2 {[%clk 0:01:48]}  Nxd4 {[%clk 0:01:55]} 17. Bxd4 {[%clk 0:01:40]}  Qxd4 {[%clk 0:01:56]} 18. Nb3 {[%clk 0:01:28]}  Qxe5+ {[%clk 0:01:33]} 19. Kf1 {[%clk 0:01:28]}  O-O-O {[%clk 0:01:21]} 20. Kg2 {[%clk 0:01:07]}  Kb8 {[%clk 0:00:56]} 21. Rhe1 {[%clk 0:01:04]}  Qxb2 {[%clk 0:00:53]} 22. Re2 {[%clk 0:01:00]}  Qa3 {[%clk 0:00:40]} 23. Kh2 {[%clk 0:00:56]}  Bg7 {[%clk 0:00:35]} 24. Rc1 {[%clk 0:00:53]}  Rc8 {[%clk 0:00:35]} 25. Rce1 {[%clk 0:00:50]}  Nc5 {[%clk 0:00:32]} 26. Nxc5 {[%clk 0:00:49]}  Rxc5 {[%clk 0:00:32]} 27. Ng2 {[%clk 0:00:42]}  Rc3 {[%clk 0:00:31]} 28. Qxf7 {[%clk 0:00:42]}  Bd4 {[%clk 0:00:26]} 29. Bxg6 {[%clk 0:00:38]}  Bc8 {[%clk 0:00:23]} 30. Nf4 {[%clk 0:00:33]}  Rc1 {[%clk 0:00:20]} 31. Rxc1 {[%clk 0:00:26]}  Qxc1 {[%clk 0:00:20]} 32. Rc2 {[%clk 0:00:27]}  Qf1 {[%clk 0:00:16]} 33. Qc7+ {[%clk 0:00:24]}  Ka8 {[%clk 0:00:16]} 34. Nxe6 {[%clk 0:00:20]}  Bxf2 {[%clk 0:00:14]} 35. Qe5 {[%clk 0:00:05]}  Qg1+ {[%clk 0:00:14]} 36. Kh3 {[%clk 0:00:04]}  Re8 {[%clk 0:00:13]} 37. Qxd5+ {[%clk 0:00:03]}  Bb7 {[%clk 0:00:14]} 38. Qf5 {[%clk 0:00:01]}  Qh1+ {[%clk 0:00:12]} 39. Kg4 {[%clk 0:00:02]}  h5+ {[%clk 0:00:12]} 40. Kg5 {[%clk 0:00:02]}  Rg8 {[%clk 0:00:11]} 41. Nc7+ {[%clk 0:00:03]}  Kb8 {[%clk 0:00:11]} 42. Qe5 {[%clk 0:00:00]}  Qe4 {[%clk 0:00:09]} 0-1

[Event "December 5 Late 2023"]
[Site "https://www.chess.com"]
[Date "2023.12.05"]
[Round "9"]
[White "Martins, Vinicius Tine"]
[Black "Panesar Vedant"]
[Result "0-1"]
[Board "38"]
[TimeControl "180+1"]
[WhiteFideId "2112884"]
[BlackFideId "35033018"]
[WhiteElo "2640"]
[BlackElo "2701"]
[WhiteTeam "BRA"]
[BlackTeam "IND"]
[WhiteClock "0:00:00"]
[BlackClock "0:00:58"]

1. d4 {[%clk 0:02:58]}  Nf6 {[%clk 0:02:56]} 2. Nf3 {[%clk 0:02:58]}  d5 {[%clk 0:02:56]} 3. Bf4 {[%clk 0:02:58]}  c5 {[%clk 0:02:55]} 4. e3 {[%clk 0:02:58]}  Nc6 {[%clk 0:02:56]} 5. Nbd2 {[%clk 0:02:57]}  e6 {[%clk 0:02:56]} 6. c3 {[%clk 0:02:57]}  cxd4 {[%clk 0:02:57]} 7. exd4 {[%clk 0:02:57]}  Nh5 {[%clk 0:02:58]} 8. Bg3 {[%clk 0:02:56]}  Nxg3 {[%clk 0:02:57]} 9. hxg3 {[%clk 0:02:56]}  Bd6 {[%clk 0:02:57]} 10. Bd3 {[%clk 0:02:53]}  h6 {[%clk 0:02:58]} 11. Qc2 {[%clk 0:02:53]}  O-O {[%clk 0:02:58]} 12. O-O-O {[%clk 0:02:49]}  Bd7 {[%clk 0:02:53]} 13. g4 {[%clk 0:02:31]}  f6 {[%clk 0:02:52]} 14. Bh7+ {[%clk 0:02:28]}  Kh8 {[%clk 0:02:51]} 15. Nh4 {[%clk 0:02:13]}  Be8 {[%clk 0:02:49]} 16. Ng6+ {[%clk 0:02:08]}  Bxg6 {[%clk 0:02:48]} 17. Qxg6 {[%clk 0:02:03]}  Ne7 {[%clk 0:02:33]} 18. Qd3 {[%clk 0:01:50]}  f5 {[%clk 0:02:30]} 19. Rde1 {[%clk 0:01:38]}  Kxh7 {[%clk 0:02:22]} 20. Rxe6 {[%clk 0:01:37]}  Qd7 {[%clk 0:02:22]} 21. Qe2 {[%clk 0:00:53]}  fxg4 {[%clk 0:02:04]} 22. Qxg4 {[%clk 0:00:52]}  Rf6 {[%clk 0:01:47]} 23. Rhe1 {[%clk 0:00:29]}  Bf4 {[%clk 0:01:39]} 24. Kc2 {[%clk 0:00:20]}  Bxd2 {[%clk 0:01:35]} 25. Kxd2 {[%clk 0:00:18]}  Rxf2+ {[%clk 0:01:34]} 26. Kc1 {[%clk 0:00:17]}  Rf6 {[%clk 0:01:19]} 27. Qh3 {[%clk 0:00:00]}  Ng6 {[%clk 0:00:58]} 0-1

[Event "December 5 Late 2023"]
[Site "https://www.chess.com"]
[Date "2023.12.05"]
[Round "9"]
[White "Ambartsumova, Karina"]
[Black "Bold, Andre"]
[Result "1-0"]
[Board "40"]
[TimeControl "180+1"]
[WhiteFideId "4166299"]
[BlackFideId "16208471"]
[WhiteElo "2661"]
[BlackElo "2516"]
[WhiteTeam "RUS"]
[BlackTeam "GER"]
[WhiteClock "0:00:20"]
[BlackClock "0:00:06"]

1. d4 {[%clk 0:03:00]}  d5 {[%clk 0:02:58]} 2. c4 {[%clk 0:03:00]}  c6 {[%clk 0:02:58]} 3. Nf3 {[%clk 0:03:00]}  Nf6 {[%clk 0:02:58]} 4. g3 {[%clk 0:03:01]}  dxc4 {[%clk 0:02:57]} 5. Bg2 {[%clk 0:03:00]}  b5 {[%clk 0:02:52]} 6. Ne5 {[%clk 0:02:57]}  Qb6 {[%clk 0:02:49]} 7. O-O {[%clk 0:02:49]}  e6 {[%clk 0:02:47]} 8. a4 {[%clk 0:02:37]}  Bb7 {[%clk 0:02:40]} 9. Nc3 {[%clk 0:02:26]}  a6 {[%clk 0:02:38]} 10. Bf4 {[%clk 0:02:06]}  Nd5 {[%clk 0:02:24]} 11. Ne4 {[%clk 0:01:50]}  Be7 {[%clk 0:02:10]} 12. a5 {[%clk 0:01:39]}  Qd8 {[%clk 0:02:07]} 13. Bd2 {[%clk 0:01:37]}  Nd7 {[%clk 0:02:05]} 14. Qc2 {[%clk 0:01:33]}  N7f6 {[%clk 0:01:47]} 15. Nxf7 {[%clk 0:01:20]}  Kxf7 {[%clk 0:01:41]} 16. Ng5+ {[%clk 0:01:20]}  Kg8 {[%clk 0:01:39]} 17. Nxe6 {[%clk 0:01:04]}  Qd6 {[%clk 0:01:33]} 18. Nc5 {[%clk 0:01:01]}  Bc8 {[%clk 0:01:31]} 19. e4 {[%clk 0:01:02]}  h5 {[%clk 0:01:12]} 20. exd5 {[%clk 0:00:56]}  Nxd5 {[%clk 0:01:08]} 21. h4 {[%clk 0:00:44]}  Bf6 {[%clk 0:01:00]} 22. Qe4 {[%clk 0:00:43]}  Bd7 {[%clk 0:00:53]} 23. Rae1 {[%clk 0:00:40]}  Re8 {[%clk 0:00:50]} 24. Qg6 {[%clk 0:00:40]}  Rxe1 {[%clk 0:00:45]} 25. Rxe1 {[%clk 0:00:41]}  Ne7 {[%clk 0:00:35]} 26. Qe4 {[%clk 0:00:41]}  Kf7 {[%clk 0:00:17]} 27. Nxa6 {[%clk 0:00:33]}  Ra8 {[%clk 0:00:14]} 28. Bb4 {[%clk 0:00:29]}  Qd5 {[%clk 0:00:09]} 29. Qxe7+ {[%clk 0:00:19]}  Bxe7 {[%clk 0:00:09]} 30. Rxe7+ {[%clk 0:00:20]}  Kg6 {[%clk 0:00:09]} 31. Bxd5 {[%clk 0:00:20]}  cxd5 {[%clk 0:00:07]} 32. Rxd7 {[%clk 0:00:20]}  Rxa6 {[%clk 0:00:06]} 33. Rd6+ {[%clk 0:00:20]} 1-0

[Event "December 5 Late 2023"]
[Site "https://www.chess.com"]
[Date "2023.12.05"]
[Round "9"]
[White "Play, Gilles"]
[Black "Sturt, Raven"]
[Result "0-1"]
[Board "41"]
[TimeControl "180+1"]
[WhiteFideId "45130892"]
[BlackFideId "2007304"]
[WhiteElo "2447"]
[BlackElo "2656"]
[WhiteTeam "FRA"]
[BlackTeam "USA"]
[WhiteClock "0:00:03"]
[BlackClock "0:00:41"]

1. e4 {[%clk 0:03:00]}  e5 {[%clk 0:03:00]} 2. Nf3 {[%clk 0:02:56]}  Nc6 {[%clk 0:02:58]} 3. c3 {[%clk 0:02:55]}  f5 {[%clk 0:02:52]} 4. d4 {[%clk 0:02:44]}  fxe4 {[%clk 0:02:52]} 5. Nxe5 {[%clk 0:02:45]}  Nf6 {[%clk 0:02:52]} 6. Bg5 {[%clk 0:02:39]}  d6 {[%clk 0:02:50]} 7. Nxc6 {[%clk 0:02:28]}  bxc6 {[%clk 0:02:50]} 8. Nd2 {[%clk 0:02:27]}  d5 {[%clk 0:02:47]} 9. f3 {[%clk 0:02:24]}  h6 {[%clk 0:02:35]} 10. Bxf6 {[%clk 0:02:19]}  Qxf6 {[%clk 0:02:34]} 11. fxe4 {[%clk 0:02:13]}  c5 {[%clk 0:02:25]} 12. Qh5+ {[%clk 0:02:12]}  g6 {[%clk 0:02:23]} 13. Qxd5 {[%clk 0:02:11]}  Rb8 {[%clk 0:02:23]} 14. O-O-O {[%clk 0:01:53]}  cxd4 {[%clk 0:02:21]} 15. Bb5+ {[%clk 0:01:29]}  Rxb5 {[%clk 0:02:09]} 16. Qxb5+ {[%clk 0:01:28]}  c6 {[%clk 0:02:10]} 17. Qb8 {[%clk 0:01:25]}  Qe6 {[%clk 0:02:03]} 18. Nb3 {[%clk 0:01:11]}  dxc3 {[%clk 0:02:00]} 19. Nd4 {[%clk 0:00:51]}  cxb2+ {[%clk 0:01:59]} 20. Qxb2 {[%clk 0:00:52]}  Qe5 {[%clk 0:01:52]} 21. Nc2 {[%clk 0:00:46]}  Qg5+ {[%clk 0:01:50]} 22. Kb1 {[%clk 0:00:45]}  Rh7 {[%clk 0:01:50]} 23. Rd3 {[%clk 0:00:34]}  Rb7 {[%clk 0:01:45]} 24. Rb3 {[%clk 0:00:33]}  Bg7 {[%clk 0:01:46]} 25. e5 {[%clk 0:00:28]}  Qxg2 {[%clk 0:01:36]} 26. Re1 {[%clk 0:00:25]}  c5 {[%clk 0:01:29]} 27. Rxb7 {[%clk 0:00:20]}  Bxb7 {[%clk 0:01:29]} 28. Qb5+ {[%clk 0:00:17]}  Kf8 {[%clk 0:01:21]} 29. Qxc5+ {[%clk 0:00:17]}  Kg8 {[%clk 0:01:21]} 30. Qc4+ {[%clk 0:00:08]}  Kh7 {[%clk 0:01:19]} 31. Rd1 {[%clk 0:00:07]}  Be4 {[%clk 0:01:18]} 32. Re1 {[%clk 0:00:06]}  Bf5 {[%clk 0:01:16]} 33. e6 {[%clk 0:00:06]}  Qb7+ {[%clk 0:01:12]} 34. Qb3 {[%clk 0:00:06]}  Qe7 {[%clk 0:01:10]} 35. Qc4 {[%clk 0:00:04]}  Qf6 {[%clk 0:01:00]} 36. Kc1 {[%clk 0:00:03]}  Qb2+ {[%clk 0:00:58]} 37. Kd2 {[%clk 0:00:03]}  h5 {[%clk 0:00:49]} 38. e7 {[%clk 0:00:04]}  Bh6+ {[%clk 0:00:49]} 39. Kd1 {[%clk 0:00:03]}  Qc1+ {[%clk 0:00:39]} 40. Ke2 {[%clk 0:00:03]}  Qd2+ {[%clk 0:00:40]} 41. Kf1 {[%clk 0:00:03]}  Bh3+ {[%clk 0:00:41]} 42. Kg1 {[%clk 0:00:03]}  Qg2# {[%clk 0:00:41]} 0-1

[Event "December 5 Late 2023"]
[Site "https://www.chess.com"]
[Date "2023.12.05"]
[Round "9"]
[White "Spichkin, Alexander"]
[Black "Tokhirjonova, Gulrukhbegim"]
[Result "0-1"]
[Board "42"]
[TimeControl "180+1"]
[WhiteFideId "4144074"]
[BlackFideId "14203626"]
[WhiteElo "2417"]
[BlackElo "2649"]
[WhiteTeam "RUS"]
[BlackTeam "USA"]
[WhiteClock "0:00:59"]
[BlackClock "0:00:33"]

1. f4 {[%clk 0:02:44]}  d5 {[%clk 0:02:58]} 2. Nf3 {[%clk 0:02:43]}  c5 {[%clk 0:02:58]} 3. e3 {[%clk 0:02:42]}  Nc6 {[%clk 0:02:58]} 4. Bb5 {[%clk 0:02:42]}  Bd7 {[%clk 0:02:58]} 5. O-O {[%clk 0:02:42]}  Nf6 {[%clk 0:02:57]} 6. b3 {[%clk 0:02:41]}  e6 {[%clk 0:02:57]} 7. Bb2 {[%clk 0:02:41]}  Be7 {[%clk 0:02:58]} 8. Bxc6 {[%clk 0:02:39]}  Bxc6 {[%clk 0:02:58]} 9. Ne5 {[%clk 0:02:40]}  Rc8 {[%clk 0:02:58]} 10. d3 {[%clk 0:02:40]}  O-O {[%clk 0:02:58]} 11. Rf3 {[%clk 0:02:40]}  d4 {[%clk 0:02:57]} 12. Rg3 {[%clk 0:02:36]}  dxe3 {[%clk 0:02:56]} 13. Na3 {[%clk 0:02:34]}  Qd5 {[%clk 0:02:52]} 14. Nac4 {[%clk 0:02:25]}  b5 {[%clk 0:02:30]} 15. Nxe3 {[%clk 0:02:25]}  Qd6 {[%clk 0:02:30]} 16. N3g4 {[%clk 0:02:07]}  Kh8 {[%clk 0:01:57]} 17. Nxc6 {[%clk 0:02:02]}  Rxc6 {[%clk 0:01:55]} 18. Nxf6 {[%clk 0:01:59]}  Bxf6 {[%clk 0:01:46]} 19. Bxf6 {[%clk 0:01:58]}  gxf6 {[%clk 0:01:46]} 20. Rf3 {[%clk 0:01:55]}  Rg8 {[%clk 0:01:35]} 21. c3 {[%clk 0:01:49]}  Rcc8 {[%clk 0:01:33]} 22. Qe2 {[%clk 0:01:50]}  Rcd8 {[%clk 0:01:32]} 23. Rd1 {[%clk 0:01:50]}  Rg6 {[%clk 0:01:32]} 24. Qf2 {[%clk 0:01:44]}  b4 {[%clk 0:01:30]} 25. cxb4 {[%clk 0:01:40]}  cxb4 {[%clk 0:01:31]} 26. f5 {[%clk 0:01:41]}  exf5 {[%clk 0:01:28]} 27. Rxf5 {[%clk 0:01:41]}  Rdg8 {[%clk 0:01:28]} 28. g3 {[%clk 0:01:37]}  Qe6 {[%clk 0:01:22]} 29. d4 {[%clk 0:01:34]}  Re8 {[%clk 0:01:11]} 30. d5 {[%clk 0:01:33]}  Qd6 {[%clk 0:01:10]} 31. Qf4 {[%clk 0:01:31]}  Qc5+ {[%clk 0:01:08]} 32. Qd4 {[%clk 0:01:27]}  Qc2 {[%clk 0:01:08]} 33. Rxf6 {[%clk 0:01:21]}  Kg8 {[%clk 0:01:00]} 34. Rxg6+ {[%clk 0:01:18]}  hxg6 {[%clk 0:01:00]} 35. Qd2 {[%clk 0:01:17]}  Qc5+ {[%clk 0:00:58]} 36. Kh1 {[%clk 0:01:17]}  Qb5 {[%clk 0:00:54]} 37. d6 {[%clk 0:01:15]}  Re2 {[%clk 0:00:52]} 38. Qd5 {[%clk 0:01:14]}  Re1+ {[%clk 0:00:48]} 39. Rxe1 {[%clk 0:01:13]}  Qxd5+ {[%clk 0:00:48]} 40. Kg1 {[%clk 0:01:07]}  Qxd6 {[%clk 0:00:48]} 41. Re3 {[%clk 0:01:08]}  Qd4 {[%clk 0:00:47]} 42. Kf2 {[%clk 0:01:08]}  a5 {[%clk 0:00:46]} 43. h4 {[%clk 0:01:04]}  Kg7 {[%clk 0:00:46]} 44. Kf3 {[%clk 0:01:04]}  f5 {[%clk 0:00:43]} 45. Re2 {[%clk 0:01:04]}  Kh6 {[%clk 0:00:43]} 46. Kg2 {[%clk 0:01:03]}  Kh5 {[%clk 0:00:40]} 47. Rf2 {[%clk 0:01:03]}  Qe4+ {[%clk 0:00:39]} 48. Kh2 {[%clk 0:01:02]}  Qe3 {[%clk 0:00:38]} 49. Kg2 {[%clk 0:01:02]}  Kg4 {[%clk 0:00:33]} 50. Rf4+ {[%clk 0:01:02]}  Qxf4 {[%clk 0:00:33]} 51. gxf4 {[%clk 0:01:02]}  Kxf4 {[%clk 0:00:33]} 52. Kh2 {[%clk 0:00:59]}  Kg4 {[%clk 0:00:33]} 0-1

[Event "December 5 Late 2023"]
[Site "https://www.chess.com"]
[Date "2023.12.05"]
[Round "9"]
[White "Micic, Aleksa"]
[Black "Ehlvest, Jaan"]
[Result "1-0"]
[Board "43"]
[TimeControl "180+1"]
[WhiteFideId "989940"]
[BlackFideId "4500016"]
[WhiteElo "2385"]
[BlackElo "2648"]
[WhiteTeam "SRB"]
[BlackTeam "USA"]
[WhiteClock "0:00:10"]
[BlackClock "0:00:06"]

1. e4 {[%clk 0:02:49]}  g6 {[%clk 0:02:58]} 2. d4 {[%clk 0:02:49]}  Bg7 {[%clk 0:02:58]} 3. Nc3 {[%clk 0:02:49]}  c5 {[%clk 0:02:58]} 4. dxc5 {[%clk 0:02:49]}  Bxc3+ {[%clk 0:02:48]} 5. bxc3 {[%clk 0:02:49]}  Nf6 {[%clk 0:02:48]} 6. f3 {[%clk 0:02:34]}  Qa5 {[%clk 0:02:44]} 7. Qd4 {[%clk 0:02:28]}  Nc6 {[%clk 0:02:42]} 8. Qc4 {[%clk 0:02:28]}  d5 {[%clk 0:02:21]} 9. exd5 {[%clk 0:02:14]}  Nxd5 {[%clk 0:02:20]} 10. Bd2 {[%clk 0:02:11]}  Be6 {[%clk 0:02:16]} 11. Qb5 {[%clk 0:02:11]}  Qc7 {[%clk 0:02:15]} 12. c4 {[%clk 0:02:08]}  Nf6 {[%clk 0:02:12]} 13. Qb2 {[%clk 0:01:57]}  O-O {[%clk 0:02:10]} 14. Bd3 {[%clk 0:01:40]}  Ne5 {[%clk 0:02:10]} 15. Bc3 {[%clk 0:01:38]}  Nxc4 {[%clk 0:02:01]} 16. Bxc4 {[%clk 0:01:38]}  Bxc4 {[%clk 0:02:00]} 17. Nh3 {[%clk 0:01:23]}  Qxc5 {[%clk 0:01:49]} 18. Bd4 {[%clk 0:01:23]}  Qf5 {[%clk 0:01:43]} 19. O-O-O {[%clk 0:01:04]}  Rac8 {[%clk 0:01:36]} 20. Rhe1 {[%clk 0:01:01]}  Be6 {[%clk 0:01:31]} 21. Re5 {[%clk 0:00:44]}  Nd5 {[%clk 0:01:09]} 22. Rxf5 {[%clk 0:00:38]}  Bxf5 {[%clk 0:01:08]} 23. Rd2 {[%clk 0:00:33]}  a5 {[%clk 0:01:05]} 24. g4 {[%clk 0:00:29]}  Be6 {[%clk 0:00:43]} 25. Ng5 {[%clk 0:00:29]}  Nb4 {[%clk 0:00:40]} 26. a3 {[%clk 0:00:27]}  Na2+ {[%clk 0:00:33]} 27. Kb1 {[%clk 0:00:25]}  Bc4 {[%clk 0:00:34]} 28. Bg7 {[%clk 0:00:19]}  Rfe8 {[%clk 0:00:32]} 29. Ne4 {[%clk 0:00:15]}  b5 {[%clk 0:00:27]} 30. Qe5 {[%clk 0:00:13]}  b4 {[%clk 0:00:21]} 31. axb4 {[%clk 0:00:13]}  axb4 {[%clk 0:00:20]} 32. Kb2 {[%clk 0:00:14]}  Be6 {[%clk 0:00:13]} 33. Bh8 {[%clk 0:00:10]}  f6 {[%clk 0:00:11]} 34. Qxe6+ {[%clk 0:00:10]}  Kxh8 {[%clk 0:00:06]} 35. Kxa2 {[%clk 0:00:10]} 1-0

[Event "December 5 Late 2023"]
[Site "https://www.chess.com"]
[Date "2023.12.05"]
[Round "9"]
[White "Pesotskiy, Mikhail"]
[Black "Annaberdiyev, Meylis"]
[Result "1-0"]
[Board "46"]
[TimeControl "180+1"]
[WhiteFideId "34164453"]
[BlackFideId "14000563"]
[WhiteElo "2528"]
[BlackElo "2687"]
[WhiteTeam "RUS"]
[BlackTeam "TKM"]
[WhiteClock "0:00:18"]
[BlackClock "0:00:00"]

1. d4 {[%clk 0:02:58]}  Nf6 {[%clk 0:02:58]} 2. c4 {[%clk 0:02:59]}  e6 {[%clk 0:02:58]} 3. Nc3 {[%clk 0:03:00]}  d5 {[%clk 0:02:58]} 4. cxd5 {[%clk 0:02:59]}  exd5 {[%clk 0:02:58]} 5. Bg5 {[%clk 0:03:00]}  c6 {[%clk 0:02:58]} 6. Qc2 {[%clk 0:03:00]}  Bd6 {[%clk 0:02:52]} 7. e3 {[%clk 0:03:00]}  O-O {[%clk 0:02:52]} 8. Bd3 {[%clk 0:03:00]}  h6 {[%clk 0:02:52]} 9. Bh4 {[%clk 0:03:01]}  a5 {[%clk 0:02:52]} 10. Nge2 {[%clk 0:03:01]}  Na6 {[%clk 0:02:51]} 11. a3 {[%clk 0:03:02]}  Nc7 {[%clk 0:02:52]} 12. f3 {[%clk 0:02:56]}  Ne6 {[%clk 0:02:31]} 13. e4 {[%clk 0:02:49]}  Be7 {[%clk 0:02:09]} 14. e5 {[%clk 0:02:32]}  Nh5 {[%clk 0:01:52]} 15. Bxe7 {[%clk 0:02:33]}  Qxe7 {[%clk 0:01:52]} 16. O-O {[%clk 0:02:33]}  Nhf4 {[%clk 0:01:49]} 17. Rad1 {[%clk 0:01:59]}  b6 {[%clk 0:01:34]} 18. Bf5 {[%clk 0:01:42]}  Qg5 {[%clk 0:01:19]} 19. g3 {[%clk 0:01:32]}  Nxe2+ {[%clk 0:01:05]} 20. Nxe2 {[%clk 0:01:33]}  Qe3+ {[%clk 0:01:00]} 21. Kg2 {[%clk 0:01:29]}  Ba6 {[%clk 0:00:59]} 22. Rfe1 {[%clk 0:01:25]}  Bc4 {[%clk 0:00:26]} 23. Bxe6 {[%clk 0:01:08]}  fxe6 {[%clk 0:00:25]} 24. Nf4 {[%clk 0:01:09]}  Qb3 {[%clk 0:00:25]} 25. Qxb3 {[%clk 0:01:09]}  Bxb3 {[%clk 0:00:25]} 26. Rc1 {[%clk 0:01:10]}  Rxf4 {[%clk 0:00:22]} 27. gxf4 {[%clk 0:01:05]}  Bc4 {[%clk 0:00:22]} 28. b3 {[%clk 0:01:01]}  Bxb3 {[%clk 0:00:19]} 29. Rxc6 {[%clk 0:01:02]}  b5 {[%clk 0:00:17]} 30. Rxe6 {[%clk 0:00:55]}  b4 {[%clk 0:00:17]} 31. axb4 {[%clk 0:00:50]}  a4 {[%clk 0:00:17]} 32. b5 {[%clk 0:00:46]}  Ra5 {[%clk 0:00:13]} 33. Rb6 {[%clk 0:00:35]}  Bc4 {[%clk 0:00:00]} 34. Ra6 {[%clk 0:00:18]} 1-0

[Event "December 5 Late 2023"]
[Site "https://www.chess.com"]
[Date "2023.12.05"]
[Round "9"]
[White "Khruschiov, Alexey"]
[Black "Stojanovski, Sandi"]
[Result "1-0"]
[Board "47"]
[TimeControl "180+1"]
[WhiteFideId "13900544"]
[BlackFideId "1403249"]
[WhiteElo "2679"]
[BlackElo "2524"]
[WhiteTeam "MDA"]
[BlackTeam "DEN"]
[WhiteClock "0:00:52"]
[BlackClock "0:00:00"]

1. g3 {[%clk 0:03:00]}  d6 {[%clk 0:03:00]} 2. Bg2 {[%clk 0:03:00]}  g6 {[%clk 0:02:57]} 3. Nf3 {[%clk 0:03:00]}  Bg7 {[%clk 0:02:57]} 4. O-O {[%clk 0:03:00]}  c5 {[%clk 0:02:54]} 5. e4 {[%clk 0:02:59]}  Nc6 {[%clk 0:02:53]} 6. d3 {[%clk 0:02:59]}  Bg4 {[%clk 0:02:47]} 7. h3 {[%clk 0:02:56]}  Bxf3 {[%clk 0:02:47]} 8. Qxf3 {[%clk 0:02:57]}  e6 {[%clk 0:02:42]} 9. c3 {[%clk 0:02:56]}  Nge7 {[%clk 0:02:41]} 10. Be3 {[%clk 0:02:55]}  O-O {[%clk 0:02:40]} 11. Qd1 {[%clk 0:02:54]}  b6 {[%clk 0:02:28]} 12. d4 {[%clk 0:02:54]}  cxd4 {[%clk 0:02:27]} 13. cxd4 {[%clk 0:02:54]}  d5 {[%clk 0:02:24]} 14. e5 {[%clk 0:02:50]}  Nf5 {[%clk 0:02:22]} 15. Qd2 {[%clk 0:02:47]}  f6 {[%clk 0:02:17]} 16. exf6 {[%clk 0:02:32]}  Qxf6 {[%clk 0:02:17]} 17. Nc3 {[%clk 0:02:31]}  Ncxd4 {[%clk 0:02:06]} 18. Bg5 {[%clk 0:02:24]}  Qf7 {[%clk 0:02:05]} 19. Rae1 {[%clk 0:02:15]}  h6 {[%clk 0:01:54]} 20. Bf4 {[%clk 0:02:15]}  Nh4 {[%clk 0:01:50]} 21. Re3 {[%clk 0:02:07]}  Nxg2 {[%clk 0:01:44]} 22. Kxg2 {[%clk 0:02:06]}  g5 {[%clk 0:01:03]} 23. Bd6 {[%clk 0:02:06]}  Nf5 {[%clk 0:01:03]} 24. Bxf8 {[%clk 0:02:03]}  d4 {[%clk 0:00:38]} 25. Bxg7 {[%clk 0:01:49]}  dxe3 {[%clk 0:00:29]} 26. fxe3 {[%clk 0:01:50]}  Qxg7 {[%clk 0:00:18]} 27. e4 {[%clk 0:01:22]}  Nd4 {[%clk 0:00:17]} 28. Qf2 {[%clk 0:01:22]}  e5 {[%clk 0:00:16]} 29. Nd5 {[%clk 0:01:21]}  Rc8 {[%clk 0:00:13]} 30. Ne3 {[%clk 0:01:02]}  Qg6 {[%clk 0:00:06]} 31. Kg1 {[%clk 0:00:56]}  Qg7 {[%clk 0:00:00]} 32. Nf5 {[%clk 0:00:52]} 1-0

[Event "December 5 Late 2023"]
[Site "https://www.chess.com"]
[Date "2023.12.05"]
[Round "9"]
[White "Grutter, Tim"]
[Black "Solon, Nathan"]
[Result "0-1"]
[Board "49"]
[TimeControl "180+1"]
[WhiteFideId "1057472"]
[BlackFideId "2017229"]
[WhiteElo "2512"]
[BlackElo "2669"]
[WhiteTeam "NED"]
[BlackTeam "USA"]
[WhiteClock "0:00:02"]
[BlackClock "0:00:31"]

1. Nf3 {[%clk 0:03:00]}  d5 {[%clk 0:02:59]} 2. g3 {[%clk 0:03:00]}  c6 {[%clk 0:02:59]} 3. Bg2 {[%clk 0:02:57]}  Bg4 {[%clk 0:02:59]} 4. O-O {[%clk 0:02:55]}  Nd7 {[%clk 0:02:59]} 5. h3 {[%clk 0:02:54]}  Bh5 {[%clk 0:02:59]} 6. d3 {[%clk 0:02:44]}  e6 {[%clk 0:02:57]} 7. Bf4 {[%clk 0:02:32]}  Ngf6 {[%clk 0:02:44]} 8. c3 {[%clk 0:02:23]}  Be7 {[%clk 0:02:40]} 9. g4 {[%clk 0:02:12]}  Bg6 {[%clk 0:02:40]} 10. Ne5 {[%clk 0:02:12]}  Nxe5 {[%clk 0:02:36]} 11. Bxe5 {[%clk 0:02:13]}  O-O {[%clk 0:02:31]} 12. Qb3 {[%clk 0:02:00]}  Nd7 {[%clk 0:02:28]} 13. Bg3 {[%clk 0:01:51]}  Nc5 {[%clk 0:02:24]} 14. Qd1 {[%clk 0:01:44]}  f5 {[%clk 0:02:11]} 15. b4 {[%clk 0:01:31]}  f4 {[%clk 0:02:04]} 16. bxc5 {[%clk 0:01:21]}  fxg3 {[%clk 0:02:02]} 17. fxg3 {[%clk 0:01:22]}  Bxc5+ {[%clk 0:01:58]} 18. d4 {[%clk 0:01:18]}  Bd6 {[%clk 0:01:58]} 19. Nd2 {[%clk 0:01:08]}  Qc7 {[%clk 0:01:51]} 20. Nf3 {[%clk 0:01:02]}  Bxg3 {[%clk 0:01:50]} 21. Qd2 {[%clk 0:01:00]}  Be4 {[%clk 0:01:35]} 22. e3 {[%clk 0:00:29]}  Rf6 {[%clk 0:01:32]} 23. Ng5 {[%clk 0:00:26]}  Bxg2 {[%clk 0:01:19]} 24. Qxg2 {[%clk 0:00:25]}  Raf8 {[%clk 0:01:14]} 25. Rxf6 {[%clk 0:00:23]}  Rxf6 {[%clk 0:01:15]} 26. Rf1 {[%clk 0:00:19]}  Rg6 {[%clk 0:00:56]} 27. Qf3 {[%clk 0:00:08]}  Rf6 {[%clk 0:00:56]} 28. Qg2 {[%clk 0:00:07]}  Rxf1+ {[%clk 0:00:50]} 29. Qxf1 {[%clk 0:00:07]}  Qe7 {[%clk 0:00:47]} 30. Nf3 {[%clk 0:00:02]}  Bc7 {[%clk 0:00:46]} 31. Nd2 {[%clk 0:00:01]}  Qh4 {[%clk 0:00:42]} 32. Qg2 {[%clk 0:00:01]}  Ba5 {[%clk 0:00:41]} 33. Nf1 {[%clk 0:00:01]}  Bxc3 {[%clk 0:00:39]} 34. Qf3 {[%clk 0:00:02]}  Qf6 {[%clk 0:00:37]} 35. Qe2 {[%clk 0:00:01]}  Qg6 {[%clk 0:00:35]} 36. Ng3 {[%clk 0:00:01]}  Qb1+ {[%clk 0:00:35]} 37. Kg2 {[%clk 0:00:02]}  Qb2 {[%clk 0:00:35]} 38. Kf3 {[%clk 0:00:02]}  Qxe2+ {[%clk 0:00:35]} 39. Nxe2 {[%clk 0:00:03]}  Bb4 {[%clk 0:00:34]} 40. Nf4 {[%clk 0:00:03]}  Kf7 {[%clk 0:00:34]} 41. Nd3 {[%clk 0:00:03]}  Bd6 {[%clk 0:00:34]} 42. a4 {[%clk 0:00:02]}  b6 {[%clk 0:00:34]} 43. h4 {[%clk 0:00:01]}  c5 {[%clk 0:00:35]} 44. dxc5 {[%clk 0:00:01]}  bxc5 {[%clk 0:00:36]} 45. e4 {[%clk 0:00:02]}  c4 {[%clk 0:00:35]} 46. Nb2 {[%clk 0:00:01]}  Be5 {[%clk 0:00:33]} 47. Nd1 {[%clk 0:00:01]}  Bd4 {[%clk 0:00:34]} 48. exd5 {[%clk 0:00:01]}  exd5 {[%clk 0:00:35]} 49. Kf4 {[%clk 0:00:02]}  Ke6 {[%clk 0:00:34]} 50. Kf3 {[%clk 0:00:02]}  Ke5 {[%clk 0:00:34]} 51. Ke2 {[%clk 0:00:02]}  Ke4 {[%clk 0:00:34]} 52. Kd2 {[%clk 0:00:02]}  Kf4 {[%clk 0:00:32]} 53. Kc2 {[%clk 0:00:02]}  Kxg4 {[%clk 0:00:31]} 0-1